Workbook

Sheet Sheet2
A1: 附件1
A2: 河源市2024年中央财政农村危房改造补助资金分配方案
A3: 序号 | B3: 行政 区划 | C3: 合计 （户） | D3: 拆除重建 | G3: 修缮加固 | J3: 原中央苏区县 提高补助 | M3: 省下达补助资金 （万元） | N3: 已提前下达金额 （万元） | O3: 本次拟分配金额 （万元）
D4: 小计 （户） | E4: 补助标准 （万元/户） | F4: 补助金额 （万元） | G4: 小计 （户） | H4: 补助标准 （万元/户） | I4: 补助金额 （万元） | J4: 小计（户） | K4: 补助标准 （万元/户） | L4: 补助金额 （万元）
A5: 全市合计 | C5: 155 | D5: 155 | E5: 1.3 | F5: =SUM(F6:F11) -> 201.5 | G5: 0 | H5: 0.6 | I5: =SUM(I6:I11) -> 0 | J5: 109 | K5: 0.35 | L5: =SUM(L6:L11) -> 38.15 | M5: =SUM(M6:M11) -> 239.65 | N5: =SUM(N6:N11) -> 193.75 | O5: =SUM(O6:O11) -> 45.9
A6: 1 | B6: 东源县 | C6: 30 | D6: 30 | E6: 1.3 | F6: =D6*1.3 -> 39 | G6: 0 | H6: 0.6 | I6: =G6*H6 -> 0 | J6: / | K6: / | L6: 0 | M6: =F6+I6+L6 -> 39 | N6: 37.5 | O6: =M6-N6 -> 1.5
A7: 2 | B7: 和平县 | C7: 25 | D7: 25 | E7: 1.3 | F7: =D7*1.3 -> 32.5 | G7: 0 | H7: 0.6 | I7: 0 | J7: 25 | K7: 0.35 | L7: =C7*0.35 -> 8.75 | M7: 41.25 | N7: 31.25 | O7: =M7-N7 -> 10
A8: 3 | B8: 龙川县 | C8: 34 | D8: 34 | E8: 1.3 | F8: =D8*1.3 -> 44.2 | G8: 0 | H8: 0.6 | I8: 0 | J8: 34 | K8: 0.35 | L8: 11.9 | M8: 56.1 | N8: 42.5 | O8: 13.6
A9: 4 | B9: 紫金县 | C9: 15 | D9: 15 | E9: 1.3 | F9: =D9*1.3 -> 19.5 | G9: 0 | H9: 0.6 | I9: 0 | J9: / | K9: / | L9: 0 | M9: 19.5 | N9: 18.75 | O9: 0.75
A10: 5 | B10: 连平县 | C10: 50 | D10: 50 | E10: 1.3 | F10: =D10*1.3 -> 65 | G10: 0 | H10: 0.6 | I10: 0 | J10: 50 | K10: 0.35 | L10: 17.5 | M10: 82.5 | N10: 62.5 | O10: 20
A11: 6 | B11: 江东新区 | C11: 1 | D11: 1 | E11: 1.3 | F11: =D11*1.3 -> 1.3 | G11: 0 | H11: 0.6 | I11: 0 | J11: / | K11: / | L11: 0 | M11: 1.3 | N11: 1.25 | O11: 0.05
A12: 备注：根据《广东省财政厅关于提前下达2024年中央财政农村危房改造补助资金预算的通知》（粤财建〔2023〕74号），省提前下达我市2024年中央财政农村危房改造任务155户、补助资金预算193.75万元，我市已按程序要求分配下达，详见《河源市财政局关于下达2024年中央财政农村危房改造补助资金的通知》（河财建〔2024〕6号 ）。根据《广东省财政厅关于下达2024年中央财政农村危房改造资金预算的通知》（粤财建〔2024〕35号）、《广东省住房和城乡建设厅关于下达2024年中央财政农村危房改造补助资金任务清单的通知》、补助资金预算45.9万元，现按要求进行分配。
